fUST/lending_fUST_20250605
["ID","MTS","AMOUNT","RATE_DAILY","PERIOD"]
[364333441,1749072650381,-2658.08,0.00022519,2]
[364333443,1749072650390,-2885.75,0.00022519,2]
[364333445,1749072650401,-767.23,0.00022519,2]
[364333447,1749072650410,-440.0,0.00022519,2]
[364333449,1749072650420,-440.0,0.00022519,2]
[364333451,1749072650429,-1380.54,0.00022519,2]
[364333462,1749072650520,-1401.26,0.00022519,2]
[364333464,1749072650533,-1601.74,0.00022519,2]
[364333466,1749072650542,-440.0,0.00022519,2]
[364333468,1749072650552,-440.0,0.0002252,2]
[364333470,1749072650561,-485.74,0.0002252,2]
[364333472,1749072650571,-440.0,0.0002252,2]
[364333474,1749072650581,-440.0,0.0002252,2]
[364333476,1749072650590,-582.20583078,0.0002252,2]
[364333478,1749072650600,-932.88,0.0002252,2]
[364333480,1749072650610,-1592.15,0.0002252,2]
[364333482,1749072650620,-3088.82,0.0002252,2]
[364333484,1749072650630,-1908.24,0.0002252,2]
[364333486,1749072650640,-1479.49,0.0002252,2]
[364333488,1749072650649,-440.0,0.0002252,2]
[364333490,1749072650659,-440.0,0.0002252,2]
[364333492,1749072650668,-440.0,0.0002252,2]
[364333494,1749072650677,-769.84,0.0002252,2]
[364333496,1749072650687,-1000.0,0.00022521,2]
[364333498,1749072650696,-1000.0,0.00022521,2]
[364333500,1749072650706,-1000.0,0.00022521,2]
[364333502,1749072650715,-1001.49859335,0.00022521,2]
[364333504,1749072650725,-400.0,0.00022521,2]
[364333506,1749072650734,-151.0,0.00022521,7]
[364333508,1749072650744,-561.94,0.00022521,2]
[364333510,1749072650753,-3312.38,0.00022521,2]
[364333512,1749072650763,-513.5,0.00022521,2]
[364333514,1749072650773,-492.07,0.00022521,2]
[364333516,1749072650783,-203.52,0.00022521,2]
[364333518,1749072650792,-1560.7,0.00022521,2]
[364333520,1749072650802,-1109.07,0.00022521,2]
[364333522,1749072650811,-151.0,0.00022521,7]
[364333524,1749072650820,-440.0,0.00022521,2]
[364333526,1749072650830,-1797.59,0.00022521,2]
[364333528,1749072650840,-440.0,0.00022521,2]
[364333530,1749072650849,-998.56595591,0.00022611,2]
[364333532,1749072650858,-3651.21898251,0.00022624,7]
[364333534,1749072650867,-151.0,0.00022659,7]
[364333536,1749072650876,-151.0,0.00022659,7]
[364333538,1749072650886,-151.0,0.00022659,7]
[364333540,1749072650895,-151.0,0.00022659,7]
[364333542,1749072650906,-151.0,0.00022659,7]
[364333544,1749072650917,-151.0,0.00022659,7]
[364333546,1749072650926,-152.51297585,0.0002268,2]
[364333548,1749072650937,-5000.0,0.0002268,2]
[364333550,1749072650947,-500.0,0.00022706,2]
[364333552,1749072650956,-12500.0,0.00022747,3]
[364333554,1749072650965,-160.0,0.00022747,3]
[364333556,1749072650974,-151.0,0.00022747,7]
[364333558,1749072650983,-12500.0,0.00022756,3]
[364333560,1749072650992,-12500.0,0.00022764,3]
[364333562,1749072651001,-12500.0,0.00022773,3]
[364333564,1749072651010,-12500.0,0.00022782,3]
[364333566,1749072651020,-440.0,0.00022793,2]
[364333568,1749072651029,-2461.69,0.00022793,2]
[364333570,1749072651039,-2658.08,0.00022793,2]
[364333572,1749072651052,-2885.75,0.00022793,2]
[364333573,1749072651067,-767.23,0.00022793,2]
[364333576,1749072651079,-213.52,0.00022793,2]
[364333578,1749072651092,-440.0,0.00022793,2]
[364333580,1749072651102,-1380.54,0.00022793,2]
[364333582,1749072651112,-1401.26,0.00022793,2]
[364333584,1749072651123,-1601.74,0.00022793,2]
[364333586,1749072651133,-440.0,0.00022793,2]
[364333588,1749072651143,-440.0,0.00022794,2]
[364333590,1749072651152,-440.0,0.00022794,2]
[364333592,1749072651161,-440.0,0.00022794,2]
[364333594,1749072651171,-932.88,0.00022794,2]
[364333596,1749072651183,-1592.15,0.00022794,2]
[364333598,1749072651194,-3088.82,0.00022794,2]
[364333600,1749072651204,-1908.24,0.00022794,2]
[364333602,1749072651214,-1479.49,0.00022794,2]
[364333604,1749072651223,-440.0,0.00022794,2]
[364333606,1749072651233,-440.0,0.00022794,2]
[364333608,1749072651242,-542.2,0.00022794,2]
[364333610,1749072651252,-769.84,0.00022794,2]
[364333612,1749072651262,-400.0,0.00022795,2]
[364333614,1749072651271,-561.94,0.00022795,2]
[364333616,1749072651283,-3312.38,0.00022795,2]
[364333618,1749072651293,-513.5,0.00022795,2]
[364333620,1749072651304,-492.07,0.00022795,2]
[364333622,1749072651313,-1560.7,0.00022795,2]
[364333625,1749072651324,-1109.07,0.00022795,2]
[364333627,1749072651337,-440.0,0.00022795,2]
[364333629,1749072651347,-1797.59,0.00022795,2]
[364333631,1749072651359,-529.1,0.00022795,2]
[364333633,1749072651369,-151.0,0.000228,7]
[364333635,1749072651378,-151.0,0.000228,7]
[364333637,1749072651389,-151.0,0.000228,7]
[364333639,1749072651400,-41512.0,0.000228,2]
[364333641,1749072651409,-205.847056,0.000228,7]
[364333643,1749072651420,-205.847056,0.000228,7]
[364333645,1749072651430,-1511.592239,0.000228,2]
[364333647,1749072651440,-1511.592239,0.000228,2]
[364333649,1749072651451,-151.0,0.000228,7]
[364333651,1749072651460,-3651.21898251,0.00022831,8]
[364333653,1749072651469,-29999.68416837,0.000229,2]
[364333658,1749072651587,-553.83063043,0.000229,2]
[364333660,1749072651601,-254.87,0.000229,2]
[364333663,1749072651613,-844.76062011,0.000229,2]
[364333665,1749072651626,-945.0,0.000229,2]
[364333667,1749072651638,-25795.56935009,0.000229,2]
[364333669,1749072651652,-22264.625231,0.000229,2]
[364333672,1749072651664,-1940.04,0.000229,7]
[364333674,1749072651673,-1000.0,0.00022966,2]
[364333675,1749072651682,-1491.71526404,0.00022969,2]
[364333678,1749072651692,-852.94100457,0.00022969,2]
[364333680,1749072651702,-480.129086,0.00022969,2]
[364333682,1749072651711,-1224.45895004,0.00022969,2]
[364333703,1749072651920,-440.0,0.00018409,2]
[364333705,1749072651930,-1571.84447093,0.0001841,2]
[364333707,1749072651939,-440.0,0.00018411,2]
[364333709,1749072651949,-440.0,0.00018683,2]
[364333711,1749072651959,-281.98,0.00018685,2]
[364333713,1749072651968,-440.0,0.00018957,2]
[364333715,1749072651977,-440.0,0.00019231,2]
[364333717,1749072651987,-329.50595859,0.00019233,2]
[364333719,1749072651996,-440.0,0.00019505,2]
[364333721,1749072652006,-440.0,0.00019779,2]
[364333723,1749072652016,-440.0,0.00020053,2]
[364333725,1749072652026,-1400.0,0.00020068,2]
[364333727,1749072652035,-440.0,0.00020327,2]
[364333729,1749072652045,-440.0,0.00020601,2]
[364333731,1749072652054,-212.90465545,0.00020734,2]
[364333733,1749072652064,-440.0,0.00020875,2]
[364333735,1749072652073,-440.0,0.00021149,2]
[364333737,1749072652083,-1400.0,0.00021164,2]
[364333739,1749072652093,-440.0,0.00021423,2]
[364333742,1749072652102,-440.0,0.00021697,2]
[364333752,1749072652195,-440.0,0.00021971,2]
[364333754,1749072652205,-440.0,0.00022245,2]
[364333756,1749072652214,-1400.0,0.0002226,2]
[364333758,1749072652224,-440.0,0.00022519,2]
[364333760,1749072652233,-440.0,0.00022793,2]
[364333762,1749072652243,-1175.54104996,0.00022969,2]
[364333764,1749072652252,-2000.0,0.00022969,2]
[364333766,1749072652262,-575.49483425,0.00022973,2]
[364333768,1749072652272,-500.0,0.00022973,2]
[364333770,1749072652286,-500.0,0.00022973,2]
[364333772,1749072652296,-160.3024375,0.00022973,2]
[364333774,1749072652306,-151.0,0.00022999,7]
[364333776,1749072652315,-151.0,0.00022999,7]
[364333778,1749072652326,-188.77012,0.00023,2]
[364333780,1749072652336,-188.77012,0.00023,2]
[364333782,1749072652345,-268560.69835147,0.00023,7]
[364333784,1749072652354,-151.0,0.00023,7]
[364333786,1749072652365,-151.0,0.00023,7]
[364333788,1749072652374,-151.0,0.00023,7]
[364333790,1749072652383,-151.0,0.00023,7]
[364333792,1749072652394,-151.0,0.00023,7]
[364333794,1749072652403,-151.0,0.00023,7]
[364333796,1749072652412,-151.0,0.00023,7]
[364333797,1749072652421,-160.140701,0.00023,7]
[364333800,1749072652436,-151.0,0.00023,7]
[364333803,1749072652452,-151.0,0.00023,7]
[364333805,1749072652463,-205.847056,0.00023,7]
[364333807,1749072652473,-77346.01731175,0.00023,2]
[364333809,1749072652483,-205.847056,0.00023,7]
[364333811,1749072652493,-248.29768602,0.00023,2]
[364333813,1749072652503,-246528.11308913,0.00023,2]
[364333815,1749072652513,-1511.592239,0.00023,2]
[364333817,1749072652523,-3023.01456812,0.00023,2]
[364333819,1749072652539,-1511.592239,0.00023,2]
[364333821,1749072652549,-151.0,0.00023,7]
[364333823,1749072652559,-151.0,0.00023,7]
[364333825,1749072652569,-3651.21898251,0.00023038,8]
[364333827,1749072652579,-209.92,0.00023067,2]
[364333829,1749072652589,-2461.69,0.00023067,2]
[364333831,1749072652599,-2658.08,0.00023067,2]
[364333833,1749072652609,-2885.75,0.00023067,2]
[364333836,1749072652619,-767.23,0.00023067,2]
[364333838,1749072652630,-440.0,0.00023067,2]
[364333840,1749072652640,-1380.54,0.00023067,2]
[364333842,1749072652651,-1401.26,0.00023067,2]
[364333844,1749072652662,-1601.74,0.00023067,2]
[364333846,1749072652671,-572.52,0.00023067,2]
[364333848,1749072652681,-440.0,0.00023067,2]
[364333850,1749072652691,-440.0,0.00023068,2]
[364333852,1749072652705,-332.46271479,0.00023068,2]
[364333854,1749072652716,-276.72,0.00023068,2]
[364333856,1749072652729,-932.88,0.00023068,2]
[364333858,1749072652740,-1592.15,0.00023068,2]
[364333860,1749072652750,-3088.82,0.00023068,2]
[364333863,1749072652760,-1908.24,0.00023068,2]
[364333865,1749072652770,-1479.49,0.00023068,2]
[364333867,1749072652780,-440.0,0.00023068,2]
[364333868,1749072652789,-440.0,0.00023068,2]
[364333871,1749072652800,-769.84,0.00023068,2]
[364333873,1749072652810,-1500.0,0.00023068,2]
[364333875,1749072652820,-840.67825308,0.00023068,2]
[364333877,1749072652830,-1500.0,0.00023068,2]
[364333879,1749072652839,-400.0,0.00023069,2]
[364333881,1749072652849,-561.94,0.00023069,2]
[364333883,1749072652859,-3312.38,0.00023069,2]
[364333885,1749072652869,-513.5,0.00023069,2]
[364333887,1749072652879,-492.07,0.00023069,2]
[364333889,1749072652888,-1560.7,0.00023069,2]
[364333891,1749072652898,-1109.07,0.00023069,2]
[364333893,1749072652908,-440.0,0.00023069,2]
[364333895,1749072652918,-1797.59,0.00023069,2]
[364333897,1749072652927,-276.6268367,0.00023096,2]
[364333899,1749072652938,-153.0,0.00023096,2]
[364333901,1749072652948,-151.0,0.000231,6]
[364333903,1749072652957,-151.0,0.00023176,7]
[364333905,1749072652968,-67029.3,0.000232,7]
[364333907,1749072652978,-151.0,0.000232,7]
[364333909,1749072652987,-151.0,0.000232,7]
[364333911,1749072652996,-800.0,0.00023201,2]
[364333913,1749072653006,-158.401731,0.00023226,7]
[364333915,1749072653016,-5000.0,0.00023228,2]
[364333917,1749072653026,-729.1633396,0.00023233,2]
[364333919,1749072653036,-364.5816698,0.00023233,2]
[364333922,1749072653046,-364.5816698,0.00023233,2]
[364333924,1749072653056,-364.5816698,0.00023233,2]
[364333926,1749072653065,-364.5816698,0.00023233,2]
[364333928,1749072653075,-364.5816698,0.00023233,2]
[364333930,1749072653085,-729.1633396,0.00023233,2]
[364333932,1749072653095,-600.0,0.00023238,2]
[364333934,1749072653105,-3651.21898251,0.00023245,8]
[364333936,1749072653115,-250.0,0.00023255,2]
[364333938,1749072653125,-200.0,0.00023287,2]
[364333940,1749072653136,-200.0,0.00023287,2]
[364333942,1749072653147,-200.0,0.00023287,2]
[364333944,1749072653157,-200.0,0.00023287,2]
[364333946,1749072653167,-200.0,0.00023287,2]
[364333948,1749072653177,-200.0,0.00023287,2]
[364333950,1749072653187,-200.0,0.00023287,2]
[364333953,1749072653197,-200.0,0.00023287,2]
[364333955,1749072653207,-200.0,0.00023287,2]
[364333957,1749072653216,-200.0,0.00023287,2]
[364333959,1749072653226,-200.0,0.00023287,2]
[364333961,1749072653237,-200.0,0.00023287,2]
[364333963,1749072653247,-200.0,0.00023287,2]
[364333965,1749072653257,-200.0,0.00023287,2]
[364333966,1749072653266,-200.0,0.00023287,2]
[364333969,1749072653277,-200.0,0.00023287,2]
[364333971,1749072653293,-200.0,0.00023287,2]
[364333973,1749072653304,-200.0,0.00023287,2]
[364333974,1749072653315,-206.71,0.0002329,4]
[364333977,1749072653326,-684.0,0.000233,7]
[364333979,1749072653335,-365.24,0.00023317,10]
[364333981,1749072653346,-800.0,0.0002333,2]
[364333983,1749072653356,-2461.69,0.00023341,2]
[364333985,1749072653365,-2658.08,0.00023341,2]
[364333987,1749072653375,-2885.75,0.00023341,2]
[364333989,1749072653385,-767.23,0.00023341,2]
[364333991,1749072653395,-1380.54,0.00023341,2]
[364333993,1749072653405,-1401.26,0.00023341,2]
[364333995,1749072653414,-1601.74,0.00023341,2]
[364333997,1749072653424,-440.0,0.00023341,2]
[364333999,1749072653434,-440.0,0.00023342,2]
[364334001,1749072653444,-932.88,0.00023342,2]
[364334003,1749072653455,-1592.15,0.00023342,2]
[364334005,1749072653464,-3088.82,0.00023342,2]
[364334007,1749072653475,-1908.24,0.00023342,2]
[364334009,1749072653485,-1479.49,0.00023342,2]
[364334011,1749072653494,-440.0,0.00023342,2]
[364334013,1749072653503,-440.0,0.00023342,2]
[364334015,1749072653513,-769.84,0.00023342,2]
[364334017,1749072653523,-400.0,0.00023343,2]
[364334019,1749072653532,-561.94,0.00023343,2]
[364334021,1749072653543,-3312.38,0.00023343,2]
[364334023,1749072653552,-513.5,0.00023343,2]
[364334025,1749072653562,-492.07,0.00023343,2]
[364334028,1749072653572,-1560.7,0.00023343,2]
[364334030,1749072653583,-1109.07,0.00023343,2]
[364334032,1749072653595,-440.0,0.00023343,2]
[364334034,1749072653604,-1797.59,0.00023343,2]
[364334036,1749072653613,-200.0,0.00023343,2]
[364334038,1749072653622,-1400.0,0.00023356,2]
[364334040,1749072653631,-471.81983633,0.00023361,2]
[364334042,1749072653641,-153.0,0.0002337,2]
[364334044,1749072653652,-153.0,0.0002337,2]
[364334046,1749072653661,-353.8176336,0.0002337,2]
[364334048,1749072653671,-390.5657552,0.0002337,2]
[364334050,1749072653680,-353.057519,0.0002337,2]
[364334052,1749072653689,-153.0,0.0002337,2]
[364334053,1749072653699,-1171.0814556,0.0002337,2]
[364334055,1749072653708,-153.0,0.0002337,2]
[364334057,1749072653717,-158.575084,0.0002337,2]
[364334059,1749072653727,-572.7197194,0.0002337,2]
[364334061,1749072653736,-158.575084,0.0002337,2]
[364334063,1749072653746,-572.7197194,0.0002337,2]
[364334065,1749072653755,-153.0,0.0002337,2]
[364334067,1749072653764,-153.0,0.0002337,2]
[364334068,1749072653774,-572.7197194,0.0002337,2]
[364334071,1749072653783,-158.575084,0.0002337,2]
[364334073,1749072653793,-153.0,0.0002337,2]
[364334083,1749072653802,-153.0,0.0002337,2]
[364334086,1749072653905,-153.0,0.0002337,2]
[364334088,1749072653914,-153.0,0.0002337,2]
[364334090,1749072653924,-153.0,0.0002337,2]
[364334092,1749072653934,-153.0,0.0002337,2]
[364334094,1749072653943,-153.0,0.0002337,2]
[364334096,1749072653953,-823.0,0.00023381,2]
[364334098,1749072653963,-3651.21898251,0.00023452,9]
[364334100,1749072653973,-600.0,0.0002348,2]
[364334102,1749072653981,-2816.83204157,0.000235,2]
[364334104,1749072653991,-215.0738,0.00023501,2]
[364334106,1749072654001,-546.72605437,0.00023514,2]
[364334108,1749072654011,-3000.0,0.00023517,2]
[364334110,1749072654020,-2500.0,0.00023517,2]
[364334112,1749072654030,-500.0,0.00023521,2]
[364334114,1749072654040,-1000.0,0.00023521,2]
[364334116,1749072654049,-151.0,0.00023521,7]
[364334118,1749072654058,-151.0,0.00023521,7]
[364334120,1749072654068,-205.847056,0.00023521,7]
[364334122,1749072654078,-205.847056,0.00023521,7]
[364334124,1749072654087,-1511.592239,0.00023521,2]
[364334126,1749072654097,-1511.592239,0.00023521,2]
[364334128,1749072654106,-151.0,0.000236,7]
[364334130,1749072654115,-2461.69,0.00023615,2]
[364334132,1749072654125,-2658.08,0.00023615,2]
[364334134,1749072654134,-2885.75,0.00023615,2]
[364334136,1749072654143,-767.23,0.00023615,2]
[364334138,1749072654154,-1380.54,0.00023615,2]
[364334140,1749072654163,-1401.26,0.00023615,2]
[364334142,1749072654173,-1601.74,0.00023615,2]
[364334144,1749072654183,-440.0,0.00023615,2]
[364334146,1749072654192,-306.3,0.00023616,2]
[364334148,1749072654202,-932.88,0.00023616,2]
[364334150,1749072654212,-1592.15,0.00023616,2]
[364334152,1749072654221,-3088.82,0.00023616,2]
[364334154,1749072654231,-1908.24,0.00023616,2]
[364334157,1749072654241,-1479.49,0.00023616,2]
[364334158,1749072654251,-424.8,0.00023616,2]
[364334160,1749072654260,-440.0,0.00023616,2]
[364334162,1749072654270,-769.84,0.00023616,2]
[364334164,1749072654280,-159.40047307,0.00023616,2]
[364334166,1749072654293,-2010.02909599,0.00023616,2]
[364334168,1749072654303,-2000.0,0.00023616,2]
[364334170,1749072654312,-400.0,0.00023617,2]
[364334172,1749072654322,-181.017071,0.00023617,7]
[364334174,1749072654333,-561.94,0.00023617,2]
[364334176,1749072654342,-3312.38,0.00023617,2]
[364334179,1749072654352,-513.5,0.00023617,2]
[364334180,1749072654363,-492.07,0.00023617,2]
[364334182,1749072654372,-1560.7,0.00023617,2]
[364334184,1749072654381,-1109.07,0.00023617,2]
[364334186,1749072654391,-170.95,0.00023617,2]
[364334188,1749072654401,-1797.59,0.00023617,2]
[364334190,1749072654411,-200.0,0.00023617,2]
[364334192,1749072654421,-153.0,0.00023644,2]
[364334194,1749072654430,-153.0,0.00023644,2]
[364334196,1749072654440,-3651.21898251,0.00023659,9]
[364334198,1749072654450,-937.983197,0.00023676,3]
[364334200,1749072654460,-4000.0,0.00023703,4]
[364334202,1749072654469,-1710.561,0.0002375,2]
[364334204,1749072654479,-707.0,0.0002375,2]
[364334206,1749072654488,-405.0,0.0002375,2]
[364334208,1749072654498,-962.0,0.0002375,2]
[364334210,1749072654507,-5000.0,0.00023776,2]
[364334212,1749072654517,-170.902628,0.00023776,7]
[364334214,1749072654526,-151.0,0.000238,6]
[364334216,1749072654536,-151.0,0.000238,7]
[364334218,1749072654545,-151.0,0.000238,7]
[364334220,1749072654556,-151.0,0.000238,7]
[364334222,1749072654566,-151.0,0.000238,7]
[364334224,1749072654576,-151.0,0.000238,7]
[364334227,1749072654586,-151.0,0.000238,7]
[364334228,1749072654595,-638.0,0.000238,2]
[364334231,1749072654605,-3651.21898251,0.00023866,10]
[364334233,1749072654615,-2461.69,0.00023889,2]
[364334235,1749072654623,-2658.08,0.00023889,2]
[364334237,1749072654633,-2885.75,0.00023889,2]
[364334239,1749072654642,-767.23,0.00023889,2]
[364334240,1749072654651,-1380.54,0.00023889,2]
[364334243,1749072654661,-1401.26,0.00023889,2]
[364334244,1749072654671,-1601.74,0.00023889,2]
[364334247,1749072654680,-440.0,0.00023889,2]
[364334249,1749072654690,-932.88,0.0002389,2]
[364334251,1749072654700,-1592.15,0.0002389,2]
[364334253,1749072654709,-3088.82,0.0002389,2]
[364334255,1749072654720,-1908.24,0.0002389,2]
[364334257,1749072654730,-1479.49,0.0002389,2]
[364334258,1749072654739,-440.0,0.0002389,2]
[364334261,1749072654749,-151.0,0.0002389,7]
[364334262,1749072654759,-769.84,0.0002389,2]
[364334264,1749072654768,-400.0,0.00023891,2]
[364334266,1749072654777,-561.94,0.00023891,2]
[364334268,1749072654786,-3312.38,0.00023891,2]
[364334270,1749072654796,-513.5,0.00023891,2]
[364334272,1749072654806,-492.07,0.00023891,2]
[364334274,1749072654816,-1560.7,0.00023891,2]
[364334276,1749072654825,-1109.07,0.00023891,2]
[364334278,1749072654835,-1797.59,0.00023891,2]
[364334280,1749072654844,-257.36609889,0.00023891,2]
[364334282,1749072654854,-159.40047305,0.00023945,2]
[364334284,1749072654865,-159.40047307,0.00023945,2]
[364334286,1749072654874,-159.40047307,0.00023945,2]
[364334288,1749072654884,-159.45006171,0.00023945,2]
[364334290,1749072654893,-800.0,0.00023952,2]
[364334292,1749072654903,-800.0,0.00023992,2]
[364334294,1749072654913,-6804.02571148,0.00023995,2]
[364334296,1749072654924,-188.77012,0.00024,2]
[364334298,1749072654933,-188.77012,0.00024,2]
[364334300,1749072654942,-500.0,0.00024,2]
[364334302,1749072654952,-800.0,0.00024,2]
[364334304,1749072654962,-9567.43702106,0.00024,2]
[364334306,1749072654972,-500.0,0.00024,2]
[364334308,1749072654981,-500.0,0.00024,2]
[364334310,1749072654991,-37719.12667811,0.00024,2]
[364334313,1749072655007,-3870.11404293,0.00024,2]
[364334315,1749072655019,-39069.09927896,0.00024,2]
[364334317,1749072655029,-1940.04,0.00024,7]
[364334319,1749072655038,-204.0,0.00024,9]
[364334321,1749072655047,-800.0,0.00024016,2]
[364334323,1749072655057,-800.0,0.00024049,2]
[364334326,1749072655067,-3600.0,0.00024065,2]
[364334328,1749072655076,-3000.0,0.00024065,2]
[364334330,1749072655086,-6821.72804521,0.00024066,2]
[364334332,1749072655096,-5000.0,0.00024066,2]
[364334334,1749072655105,-5000.0,0.00024066,2]
[364334336,1749072655115,-5000.0,0.00024066,2]
[364334338,1749072655124,-5000.0,0.00024066,2]
[364334340,1749072655133,-3651.21898251,0.00024072,10]
[364334342,1749072655143,-1000.0,0.0002408,5]
[364334344,1749072655153,-2000.0,0.000241,2]
[364334346,1749072655162,-2000.0,0.000241,2]
[364334348,1749072655171,-1000.0,0.000241,5]
[364334350,1749072655180,-440.0,0.00024109,2]
[364334352,1749072655190,-440.0,0.00024109,2]
[364334354,1749072655200,-440.0,0.00024109,2]
[364334356,1749072655209,-440.0,0.00024109,2]
[364334358,1749072655218,-440.0,0.00024109,2]
[364334360,1749072655227,-440.0,0.00024109,2]
[364334362,1749072655236,-440.0,0.00024109,2]
[364334364,1749072655245,-493.34859404,0.00024109,2]
[364334366,1749072655255,-163.8376925,0.00024124,2]
[364334368,1749072655265,-1259.91161307,0.00024149,11]
[364334370,1749072655275,-37629.19975656,0.0002416,15]
[364334388,1749072655455,-1026.52084843,0.0002416,15]
[364334390,1749072655467,-771.04020535,0.0002416,15]
[364334392,1749072655478,-6310.03150781,0.0002416,15]
[364334394,1749072655487,-1105.5376659,0.0002416,7]
[364334397,1749072655503,-396.9411603,0.0001841,2]
[364334538,1749072656959,-0.07750445,0.0001841,2]
[364334541,1749072656975,-42.98133525,0.0001841,2]
[364334542,1749072656984,-12451.78090503,0.0002416,7]
[364334545,1749072656996,-416.65490336,0.0002416,7]
[364334562,1749072657170,-440.0,0.00018409,2]
[364334564,1749072657180,-79.47999996,0.00018411,2]
[364334566,1749072657191,-220.52000004,0.00018411,2]
[364334568,1749072657201,-140.0,0.00018683,2]
[364335205,1749072663860,259.233749,0.00013699,2]
[364339798,1749073658381,264.923256,0.00013699,2]
[364339863,1749073832809,-300.0,0.00016996,2]
[364339865,1749073832819,-300.0,0.00016996,2]
[364339867,1749073832828,-300.0,0.00016996,2]
[364339869,1749073832837,-300.0,0.00016996,2]
[364339871,1749073832846,-18362.54096556,0.00016997,2]
[364339873,1749073832857,-6537.45903444,0.00016997,2]
[364339875,1749073832867,-180.6003054,0.00017574,2]
[364339877,1749073832877,-500.0,0.00017973,2]
[364339879,1749073832887,-513.67772657,0.00017973,2]
[364339881,1749073832896,-500.0,0.00017973,2]
[364339883,1749073832907,-500.0,0.00017973,2]
[364339885,1749073832916,-501.49495753,0.00017973,2]
[364339887,1749073832926,-528.62,0.00017989,3]
[364339889,1749073832936,-298.24,0.00017989,3]
[364339891,1749073832945,-894.72,0.00017989,3]
[364339893,1749073832954,-1145.09,0.00017989,3]
[364339895,1749073832964,-572.54,0.00017989,3]
[364339897,1749073832973,-286.27,0.00017989,3]
[364339899,1749073832983,-858.86,0.00017989,3]
[364339901,1749073832992,-300.0,0.00017996,2]
[364339903,1749073833001,-440.0,0.00017996,2]
[364339907,1749073833010,-440.0,0.00017996,2]
[364339910,1749073833020,-430.0,0.00017996,2]
[364339913,1749073833029,-313.19630834,0.00017996,2]
[364339916,1749073833038,-430.0,0.00017996,2]
[364339919,1749073833048,-430.0,0.00017996,2]
[364339922,1749073833057,-440.0,0.00017996,2]
[364339925,1749073833067,-450.0,0.00017997,2]
[364339928,1749073833076,-430.0,0.00017997,2]
[364339931,1749073833085,-430.0,0.00017997,2]
[364339934,1749073833095,-242.7196056,0.00017997,2]
[364339937,1749073833104,-238.6573862,0.00017997,2]
[364339940,1749073833114,-430.0,0.00017997,2]
[364339943,1749073833123,-440.0,0.00017997,2]
[364339946,1749073833132,-400.0,0.00017997,2]
[364339949,1749073833141,-430.0,0.00017997,2]
[364339952,1749073833150,-450.0,0.00017997,2]
[364339955,1749073833160,-430.0,0.00017997,2]
[364339957,1749073833170,-450.0,0.00017997,2]
[364339959,1749073833179,-430.0,0.00017997,2]
[364339961,1749073833189,-430.0,0.00017997,2]
[364339963,1749073833199,-570.11674219,0.00017997,2]
[364339965,1749073833208,-450.0,0.00017997,2]
[364339967,1749073833217,-450.0,0.00017997,2]
[364339969,1749073833226,-336.87102319,0.00017997,2]
[364339971,1749073833235,-430.0,0.00017997,2]
[364339973,1749073833245,-400.0,0.00017997,2]
[364339975,1749073833254,-430.0,0.00017997,2]
[364339977,1749073833263,-400.0,0.00017997,2]